fUST/lending_fUST_20250511
["ID","MTS","AMOUNT","RATE_DAILY","PERIOD"]
[360599367,1746899446148,-400.0,8.219e-05,2]
[360599369,1746899446158,-543.41271443,8.219e-05,2]
[360599371,1746899446168,-151.0,8.219e-05,2]
[360599373,1746899446178,-151.0,8.219e-05,2]
[360599375,1746899446189,-151.0,8.219e-05,2]
[360599377,1746899446203,-151.0,8.219e-05,2]
[360599379,1746899446213,-400.0,8.219e-05,2]
[360599381,1746899446223,-151.0,8.219e-05,2]
[360599383,1746899446236,-400.0,8.219e-05,2]
[360599385,1746899446247,-400.0,8.219e-05,2]
[360599387,1746899446257,-151.0,8.219e-05,2]
[360599389,1746899446269,-151.0,8.219e-05,2]
[360599391,1746899446279,-151.0,8.219e-05,2]
[360599393,1746899446291,-151.0,8.219e-05,2]
[360599395,1746899446300,-1223.37,8.219e-05,2]
[360599397,1746899446310,-400.0,8.219e-05,2]
[360599399,1746899446319,-400.0,8.219e-05,2]
[360599401,1746899446330,-400.0,8.219e-05,2]
[360599402,1746899446340,-1914.37,8.219e-05,2]
[360599403,1746899446349,-400.0,8.219e-05,2]
[360599405,1746899446359,-426.01,8.219e-05,2]
[360599407,1746899446369,-2510.41,8.219e-05,2]
[360599409,1746899446379,-400.0,8.219e-05,2]
[360599411,1746899446389,-400.0,8.219e-05,2]
[360599412,1746899446400,-400.0,8.219e-05,2]
[360599415,1746899446410,-711.14,8.219e-05,2]
[360599416,1746899446423,-1225.13,8.219e-05,2]
[360599419,1746899446433,-1275.22,8.219e-05,2]
[360599421,1746899446443,-501.79,8.219e-05,2]
[360599422,1746899446457,-400.0,8.219e-05,2]
[360599424,1746899446467,-400.0,8.219e-05,2]
[360599426,1746899446478,-400.0,8.219e-05,2]
[360599428,1746899446499,-971.08,8.219e-05,2]
[360599430,1746899446518,-400.0,8.219e-05,2]
[360599432,1746899446528,-400.0,8.219e-05,2]
[360599433,1746899446538,-151.0,8.219e-05,2]
[360599435,1746899446547,-151.0,8.219e-05,2]
[360599437,1746899446556,-151.0,8.219e-05,2]
[360599439,1746899446566,-400.0,8.219e-05,2]
[360599440,1746899446576,-400.0,8.219e-05,2]
[360599442,1746899446586,-158.21451358,8.219e-05,2]
[360599444,1746899446596,-400.0,8.219e-05,2]
[360599445,1746899446605,-1206.42,8.219e-05,2]
[360599447,1746899446615,-151.0,8.219e-05,2]
[360599449,1746899446624,-901.85,8.219e-05,2]
[360599451,1746899446633,-400.0,8.219e-05,2]
[360599452,1746899446642,-400.0,8.219e-05,2]
[360599454,1746899446651,-400.0,8.219e-05,2]
[360599456,1746899446661,-151.0,8.219e-05,2]
[360599457,1746899446670,-400.0,8.219e-05,2]
[360599459,1746899446679,-151.0,8.219e-05,2]
[360599460,1746899446688,-759.97,8.219e-05,2]
[360599462,1746899446698,-151.0,8.219e-05,2]
[360599463,1746899446708,-1613.06,8.219e-05,2]
[360599465,1746899446717,-400.0,8.219e-05,2]
[360599467,1746899446725,-401.46072745,8.219e-05,2]
[360599468,1746899446734,-400.0,8.219e-05,2]
[360599470,1746899446744,-482.66,8.219e-05,2]
[360599472,1746899446753,-450.59,8.219e-05,2]
[360599473,1746899446762,-495.64,8.219e-05,2]
[360599475,1746899446772,-151.0,8.219e-05,2]
[360599477,1746899446781,-151.0,8.219e-05,2]
[360599478,1746899446791,-152.788761,8.219e-05,2]
[360599480,1746899446800,-400.0,8.219e-05,2]
[360599482,1746899446809,-630.88,8.219e-05,2]
[360599483,1746899446818,-400.0,8.219e-05,2]
[360599485,1746899446827,-400.0,8.219e-05,2]
[360599487,1746899446837,-489.61392041,8.219e-05,2]
[360599488,1746899446846,-400.0,8.219e-05,2]
[360599490,1746899446855,-151.0,8.219e-05,2]
[360599492,1746899446865,-151.0,8.219e-05,2]
[360599493,1746899446874,-151.0,8.219e-05,2]
[360599495,1746899446884,-151.0,8.219e-05,2]
[360599497,1746899446893,-151.0,8.219e-05,2]
[360599499,1746899446902,-151.0,8.219e-05,2]
[360599500,1746899446912,-151.0,8.219e-05,2]
[360599502,1746899446921,-151.0,8.219e-05,2]
[360599504,1746899446931,-274.41704374,8.219e-05,2]
[360599505,1746899446940,-400.0,8.219e-05,2]
[360599507,1746899446953,-400.0,8.219e-05,2]
[360599509,1746899446962,-414.4682464,8.219e-05,2]
[360599511,1746899446972,-477.63,8.219e-05,2]
[360599513,1746899446982,-400.0,8.219e-05,2]
[360599515,1746899446991,-400.0,8.219e-05,2]
[360599516,1746899447000,-400.0,8.219e-05,2]
[360599518,1746899447010,-400.0,8.219e-05,2]
[360599520,1746899447020,-492.24,8.219e-05,2]
[360599522,1746899447029,-400.0,8.219e-05,2]
[360599524,1746899447038,-586.41,8.219e-05,2]
[360599526,1746899447048,-400.0,8.219e-05,2]
[360599528,1746899447057,-478.99,8.219e-05,2]
[360599529,1746899447067,-500.0,8.219e-05,2]
[360599531,1746899447077,-500.0,8.219e-05,2]
[360599533,1746899447087,-500.0,8.219e-05,2]
[360599535,1746899447096,-500.0,8.219e-05,2]
[360599537,1746899447105,-500.0,8.219e-05,2]
[360599539,1746899447115,-500.0,8.219e-05,2]
[360599541,1746899447124,-500.0,8.219e-05,2]
[360599542,1746899447133,-500.0,8.219e-05,2]
[360599544,1746899447143,-500.0,8.219e-05,2]
[360599546,1746899447152,-500.0,8.219e-05,2]
[360599547,1746899447164,-500.0,8.219e-05,2]
[360599548,1746899447173,-500.0,8.219e-05,2]
[360599549,1746899447182,-172.574536,8.219e-05,2]
[360599550,1746899447191,-500.0,8.219e-05,2]
[360599551,1746899447201,-172.574536,8.219e-05,2]
[360599552,1746899447211,-500.0,8.219e-05,2]
[360599553,1746899447220,-500.0,8.219e-05,2]
[360599554,1746899447229,-172.574536,8.219e-05,2]
[360599555,1746899447238,-500.0,8.219e-05,2]
[360599556,1746899447248,-196.86132112,8.219e-05,2]
[360599557,1746899447257,-433.43,8.219e-05,2]
[360599558,1746899447266,-974.89,8.219e-05,2]
[360599559,1746899447275,-172.574536,8.219e-05,2]
[360599560,1746899447289,-758.49,8.219e-05,2]
[360599561,1746899447298,-172.574536,8.219e-05,2]
[360599562,1746899447308,-172.574536,8.219e-05,2]
[360599563,1746899447317,-400.0,8.219e-05,2]
[360599564,1746899447327,-400.0,8.219e-05,2]
[360599565,1746899447336,-1385.94,8.219e-05,2]
[360599566,1746899447346,-400.0,8.219e-05,2]
[360599567,1746899447355,-151.0,8.219e-05,2]
[360599568,1746899447366,-151.0,8.219e-05,2]
[360599569,1746899447375,-151.0,8.219e-05,2]
[360599570,1746899447384,-307.29388583,8.219e-05,2]
[360599571,1746899447393,-661.09,8.219e-05,2]
[360599572,1746899447402,-516.67,8.219e-05,2]
[360599573,1746899447412,-428.04,8.219e-05,2]
[360599574,1746899447423,-151.0,8.219e-05,2]
[360599575,1746899447432,-594.22,8.219e-05,2]
[360599576,1746899447442,-151.0,8.219e-05,2]
[360599577,1746899447454,-151.0,8.219e-05,2]
[360599578,1746899447463,-700.39,8.219e-05,2]
[360599579,1746899447472,-151.0,8.219e-05,2]
[360599580,1746899447482,-151.0,8.219e-05,2]
[360599581,1746899447491,-151.0,8.219e-05,2]
[360599582,1746899447501,-948.35,8.219e-05,2]
[360599583,1746899447511,-151.0,8.219e-05,2]
[360599584,1746899447520,-151.574943,8.219e-05,2]
[360599585,1746899447530,-292.95282603,8.219e-05,2]
[360599586,1746899447539,-400.0,8.219e-05,2]
[360599587,1746899447549,-400.0,8.219e-05,2]
[360599588,1746899447559,-534.71,8.219e-05,2]
[360599589,1746899447569,-613.96,8.219e-05,2]
[360599590,1746899447579,-151.0,8.219e-05,2]
[360599591,1746899447590,-151.0,8.219e-05,2]
[360599592,1746899447599,-400.0,8.219e-05,2]
[360599593,1746899447610,-400.0,8.219e-05,2]
[360599594,1746899447619,-400.0,8.219e-05,2]
[360599595,1746899447629,-151.0,8.219e-05,2]
[360599596,1746899447639,-151.0,8.219e-05,2]
[360599597,1746899447648,-151.0,8.219e-05,2]
[360599598,1746899447658,-1553.73,8.219e-05,2]
[360599599,1746899447668,-570.87,8.219e-05,2]
[360599600,1746899447677,-2377.53,8.219e-05,2]
[360599601,1746899447687,-400.0,8.219e-05,2]
[360599602,1746899447696,-400.0,8.219e-05,2]
[360599603,1746899447706,-1119.55,8.219e-05,2]
[360599604,1746899447715,-400.0,8.219e-05,2]
[360599605,1746899447724,-400.0,8.219e-05,2]
[360599606,1746899447734,-400.0,8.219e-05,2]
[360599607,1746899447743,-340.93647369,8.219e-05,2]
[360599608,1746899447752,-400.0,8.219e-05,2]
[360599609,1746899447762,-1998.54,8.219e-05,2]
[360599610,1746899447771,-203.21125712,8.219e-05,2]
[360599611,1746899447780,-400.0,8.219e-05,2]
[360599612,1746899447789,-500.0,8.219e-05,2]
[360599614,1746899447799,-1342.16,8.219e-05,2]
[360599616,1746899447808,-523.1133405,8.219e-05,2]
[360599617,1746899447817,-157.69500669,8.219e-05,2]
[360599619,1746899447826,-1484.63,8.219e-05,2]
[360599621,1746899447836,-400.0,8.219e-05,2]
[360599623,1746899447845,-151.0,8.219e-05,2]
[360599624,1746899447854,-151.0,8.219e-05,2]
[360599626,1746899447864,-151.0,8.219e-05,2]
[360599628,1746899447873,-400.0,8.219e-05,2]
[360599630,1746899447882,-567.48,8.219e-05,2]
[360599632,1746899447891,-941.35,8.219e-05,2]
[360599633,1746899447901,-400.0,8.219e-05,2]
[360599635,1746899447910,-400.0,8.219e-05,2]
[360599638,1746899447930,-400.0,8.219e-05,2]
[360599640,1746899447941,-421.90971743,8.219e-05,2]
[360599642,1746899447952,-975.55,8.219e-05,2]
[360599644,1746899447962,-467.9409047,8.219e-05,2]
[360599645,1746899447972,-400.0,8.219e-05,2]
[360599647,1746899447982,-243.011363,8.219e-05,2]
[360599649,1746899447992,-400.0,8.219e-05,2]
[360599651,1746899448002,-400.0,8.219e-05,2]
[360599653,1746899448012,-400.0,8.219e-05,2]
[360599655,1746899448022,-400.0,8.219e-05,2]
[360599657,1746899448032,-151.0,8.219e-05,2]
[360599658,1746899448042,-151.0,8.219e-05,2]
[360599660,1746899448052,-2842.53,8.219e-05,2]
[360599662,1746899448063,-1566.4,8.219e-05,2]
[360599664,1746899448074,-151.0,8.219e-05,2]
[360599666,1746899448084,-400.0,8.219e-05,2]
[360599668,1746899448094,-151.0,8.219e-05,2]
[360599670,1746899448104,-151.0,8.219e-05,2]
[360599672,1746899448113,-151.0,8.219e-05,2]
[360599673,1746899448123,-400.0,8.219e-05,2]
[360599675,1746899448134,-400.0,8.219e-05,2]
[360599677,1746899448143,-400.0,8.219e-05,2]
[360599679,1746899448155,-400.0,8.219e-05,2]
[360599681,1746899448165,-298.5642806,8.219e-05,2]
[360599769,1746899449543,-292.6657194,8.219e-05,2]
[360599770,1746899449553,-820.5,8.219e-05,2]
[360599772,1746899449562,-204.35531149,8.219e-05,2]
[360600460,1746899457099,103087.51713618,8.019e-05,2]
[360605526,1746899711097,-325.5455307,8.023e-05,2]
[360605527,1746899720670,-160.73962839,8.023e-05,2]
[360605528,1746899724482,4458.3022082,7.218e-05,2]
[360605529,1746899737954,-313.44041388,8.023e-05,2]
[360605530,1746899884076,-196.84766602,8.022e-05,2]
[360605532,1746899943378,300.0,8.02e-05,2]
[360605533,1746900002687,300.0,8.02e-05,2]
[360605534,1746900002730,254.0,8.02e-05,2]
[360605535,1746900011125,1200.0,8.02e-05,2]
[360605536,1746900025774,300.0,8.02e-05,2]
[360605538,1746900062703,300.0,8.019e-05,2]
[360605539,1746900123510,300.0,8.019e-05,2]
[360605541,1746900181338,16998.51416876,8.02e-05,2]
[360605542,1746900183008,300.0,8.019e-05,2]
[360605546,1746900302882,300.0,8.019e-05,2]
[360605548,1746900305713,-181.19137932,8.02e-05,2]
[360605549,1746900310921,-152.0,8.02e-05,2]
[360605551,1746900314043,720.0,8.019e-05,2]
[360605553,1746900325816,300.0,8.019e-05,2]
[360605554,1746900339539,500.0,8.019e-05,2]
[360605555,1746900340593,500.0,8.019e-05,2]
[360605556,1746900340899,500.0,8.019e-05,2]
[360605557,1746900342666,596.61695031,8.019e-05,2]
[360605558,1746900342881,224.22720417,8.019e-05,2]
[360605559,1746900343177,500.0,8.019e-05,2]
[360605560,1746900343234,500.0,8.019e-05,2]
[360605561,1746900343307,500.0,8.019e-05,2]
[360605562,1746900343359,500.0,8.019e-05,2]
[360605563,1746900343415,529.60902444,8.019e-05,2]
[360605564,1746900343474,500.0,8.019e-05,2]
[360605565,1746900343530,500.0,8.019e-05,2]
[360605566,1746900343573,500.0,8.019e-05,2]
[360605567,1746900343655,500.0,8.019e-05,2]
[360605568,1746900344202,500.0,8.019e-05,2]
[360605569,1746900344303,500.0,8.019e-05,2]
[360605570,1746900344349,500.0,8.019e-05,2]
[360605571,1746900344401,500.0,8.019e-05,2]
[360605572,1746900344475,500.0,8.019e-05,2]
[360605573,1746900347978,500.0,8.019e-05,2]
[360605574,1746900348014,500.0,8.019e-05,2]
[360605575,1746900348068,500.0,8.019e-05,2]
[360605576,1746900348105,500.0,8.019e-05,2]
[360605577,1746900348161,500.0,8.019e-05,2]
[360605578,1746900348206,500.0,8.019e-05,2]
[360605579,1746900348272,500.0,8.019e-05,2]
[360605580,1746900348307,500.0,8.019e-05,2]
[360605581,1746900348342,500.0,8.019e-05,2]
[360605582,1746900348377,500.0,8.019e-05,2]
[360605583,1746900348432,500.0,8.019e-05,2]
[360605584,1746900348479,500.0,8.019e-05,2]
[360605585,1746900348516,500.0,8.019e-05,2]
[360605586,1746900348570,500.0,8.019e-05,2]
[360605587,1746900348609,500.0,8.019e-05,2]
[360605588,1746900348655,500.0,8.019e-05,2]
[360605589,1746900348771,247.25340955,8.019e-05,2]
[360605590,1746900348807,500.0,8.019e-05,2]
[360605591,1746900349041,500.0,8.019e-05,2]
[360605592,1746900349078,500.0,8.019e-05,2]
[360605593,1746900349127,500.0,8.019e-05,2]
[360605594,1746900349163,500.0,8.019e-05,2]
[360605595,1746900349212,500.0,8.019e-05,2]
[360605596,1746900349262,500.0,8.019e-05,2]
[360605597,1746900349300,500.0,8.019e-05,2]
[360605598,1746900349363,500.0,8.019e-05,2]
[360605599,1746900349412,500.0,8.019e-05,2]
[360605600,1746900349468,500.0,8.019e-05,2]
[360605611,1746900436383,4538.3269105,7.397e-05,2]
[360606278,1746900612242,1000.0,0.00022,120]
[360606287,1746900632407,-229.0,8.117e-05,2]
[360606288,1746900632418,-300.0,8.117e-05,2]
[360606289,1746900632428,-500.0,8.118e-05,2]
[360606290,1746900632437,-374.72534096,8.118e-05,2]
[360606291,1746900632447,-500.0,8.118e-05,2]
[360606292,1746900632457,-500.0,8.118e-05,2]
[360606293,1746900632467,-500.0,8.118e-05,2]
[360606294,1746900632476,-500.0,8.118e-05,2]
[360606295,1746900632485,-500.0,8.118e-05,2]
[360606296,1746900632495,-500.0,8.118e-05,2]
[360606298,1746900632504,-500.0,8.118e-05,2]
[360606299,1746900632514,-336.62322494,8.118e-05,2]
[360606300,1746900632523,-1000.0,8.119e-05,2]
[360606301,1746900632533,-160.0,8.212e-05,2]
[360606302,1746900632543,-50000.0,8.213e-05,2]
[360606304,1746900632552,-842.34118046,8.213e-05,2]
[360606306,1746900632561,-44.58559432,8.213e-05,2]
[360606308,1746900632574,-115.41440568,8.213e-05,2]
[360606310,1746900632584,-160.0,8.213e-05,2]
[360606312,1746900632593,-314.1579823,8.213e-05,2]
[360606314,1746900632602,-160.0,8.213e-05,2]
[360606316,1746900632613,-160.0,8.213e-05,2]
[360606317,1746900632622,-207.4,8.214e-05,2]
[360606319,1746900632632,-153.733068,8.219e-05,2]
[360606321,1746900632641,-151.0,8.219e-05,2]
[360606323,1746900632654,-543.39248596,8.219e-05,2]
[360606325,1746900632667,-400.0,8.219e-05,2]
[360606327,1746900632676,-151.0,8.219e-05,2]
[360606329,1746900632686,-151.0,8.219e-05,2]
[360606331,1746900632695,-426.66042709,8.219e-05,2]
[360606332,1746900632706,-400.0,8.219e-05,2]
[360606334,1746900632716,-1174.09,8.219e-05,2]
[360606336,1746900632726,-151.0,8.219e-05,2]
[360606338,1746900632736,-400.0,8.219e-05,2]
[360606340,1746900632747,-151.0,8.219e-05,2]
[360606342,1746900632758,-151.0,8.219e-05,2]
[360606344,1746900632767,-400.0,8.219e-05,2]
[360606346,1746900632777,-400.0,8.219e-05,2]
[360606348,1746900632787,-151.0,8.219e-05,2]
[360606349,1746900632796,-159.34180851,8.219e-05,2]
[360606351,1746900632806,-400.0,8.219e-05,2]
[360606353,1746900632816,-151.0,8.219e-05,2]
[360606355,1746900632826,-151.0,8.219e-05,2]
[360606357,1746900632835,-400.0,8.219e-05,2]
[360606359,1746900632845,-671.2,8.219e-05,2]
[360606361,1746900632854,-457.73,8.219e-05,2]
[360606363,1746900632864,-400.0,8.219e-05,2]
[360606365,1746900632874,-400.0,8.219e-05,2]
[360606367,1746900632884,-459.03,8.219e-05,2]
[360606369,1746900632893,-410.2,8.219e-05,2]
[360606371,1746900632903,-400.0,8.219e-05,2]
[360606373,1746900632912,-726.88,8.219e-05,2]
[360606375,1746900632921,-400.0,8.219e-05,2]
[360606377,1746900632930,-1328.19,8.219e-05,2]
[360606379,1746900632941,-151.0,8.219e-05,2]
[360606380,1746900632951,-159.916496,8.219e-05,2]
[360606382,1746900632960,-633.54,8.219e-05,2]
[360606384,1746900632970,-151.0,8.219e-05,2]
[360606386,1746900632979,-151.0,8.219e-05,2]
[360606388,1746900632990,-471.3315344,8.219e-05,2]
[360606390,1746900632999,-400.0,8.219e-05,2]
[360606393,1746900633009,-400.0,8.219e-05,2]
[360606396,1746900633019,-400.0,8.219e-05,2]
[360606399,1746900633030,-174.901,8.219e-05,2]
[360606402,1746900633039,-160.64904893,8.219e-05,2]
[360606403,1746900633048,-400.0,8.219e-05,2]
[360606404,1746900633057,-400.0,8.219e-05,2]
[360606405,1746900633066,-400.0,8.219e-05,2]
[360606406,1746900633075,-151.0,8.219e-05,2]
[360606407,1746900633085,-151.0,8.219e-05,2]
[360606408,1746900633095,-151.0,8.219e-05,2]
[360606409,1746900633105,-151.0,8.219e-05,2]
[360606410,1746900633113,-416.0482155,8.219e-05,2]
[360606411,1746900633123,-151.0,8.219e-05,2]
[360606412,1746900633132,-151.0,8.219e-05,2]
[360606413,1746900633142,-400.0,8.219e-05,2]
[360606414,1746900633151,-496.56,8.219e-05,2]
[360606415,1746900633160,-400.0,8.219e-05,2]
[360606416,1746900633170,-400.0,8.219e-05,2]
[360606417,1746900633180,-400.0,8.219e-05,2]
[360606418,1746900633189,-400.0,8.219e-05,2]
[360606419,1746900633200,-400.0,8.219e-05,2]
[360606420,1746900633209,-400.0,8.219e-05,2]
[360606421,1746900633218,-400.0,8.219e-05,2]
[360606422,1746900633228,-611.34,8.219e-05,2]
[360606423,1746900633238,-796.37,8.219e-05,2]
[360606424,1746900633248,-151.0,8.219e-05,2]
[360606425,1746900633257,-151.0,8.219e-05,2]
[360606426,1746900633268,-151.0,8.219e-05,2]
[360606427,1746900633278,-151.0,8.219e-05,2]
[360606428,1746900633287,-500.0,8.219e-05,2]
[360606429,1746900633296,-400.0,8.219e-05,2]
[360606430,1746900633306,-400.0,8.219e-05,2]
[360606431,1746900633315,-400.0,8.219e-05,2]
[360606432,1746900633325,-400.0,8.219e-05,2]
[360606433,1746900633334,-400.0,8.219e-05,2]
[360606435,1746900633344,-437.62064481,8.219e-05,2]
[360606437,1746900633354,-2030.76,8.219e-05,2]
[360606439,1746900633364,-500.0,8.219e-05,2]
[360606441,1746900633374,-400.0,8.219e-05,2]
[360606443,1746900633384,-400.0,8.219e-05,2]
[360606446,1746900633394,-400.0,8.219e-05,2]
[360606447,1746900633404,-795.56,8.219e-05,2]
[360606450,1746900633415,-561.97,8.219e-05,2]
[360606451,1746900633424,-276.82518714,8.219e-05,2]
[360606454,1746900633440,-289.77481286,8.219e-05,2]
[360606456,1746900633451,-400.0,8.219e-05,2]
[360606458,1746900633461,-400.0,8.219e-05,2]
[360606460,1746900633470,-695.32,8.219e-05,2]
[360606462,1746900633480,-151.0,8.219e-05,2]
[360606464,1746900633490,-151.0,8.219e-05,2]
[360606466,1746900633499,-400.0,8.219e-05,2]
[360606468,1746900633508,-437.58487489,8.219e-05,2]
[360606470,1746900633518,-400.0,8.219e-05,2]
[360606472,1746900633528,-407.05092928,8.219e-05,2]
[360606474,1746900633538,-425.83604476,8.219e-05,2]
[360606476,1746900633548,-1488.99,8.219e-05,2]
[360606478,1746900633558,-400.0,8.219e-05,2]
[360606480,1746900633568,-400.0,8.219e-05,2]
[360606482,1746900633578,-400.0,8.219e-05,2]
[360606484,1746900633587,-400.0,8.219e-05,2]
[360606486,1746900633597,-400.0,8.219e-05,2]
[360606488,1746900633607,-151.0,8.219e-05,2]
[360606490,1746900633617,-151.0,8.219e-05,2]
[360606492,1746900633627,-400.0,8.219e-05,2]
[360606494,1746900633637,-400.0,8.219e-05,2]
[360606496,1746900633648,-400.0,8.219e-05,2]
[360606498,1746900633660,-400.0,8.219e-05,2]
[360606500,1746900633670,-400.0,8.219e-05,2]
[360606502,1746900633680,-400.0,8.219e-05,2]
[360606504,1746900633690,-569.46,8.219e-05,2]
[360606506,1746900633703,-400.0,8.219e-05,2]
[360606508,1746900633713,-400.0,8.219e-05,2]
[360606510,1746900633723,-681.51,8.219e-05,2]
[360606512,1746900633733,-534.97412902,8.219e-05,2]
[360606514,1746900633744,-400.0,8.219e-05,2]
[360606516,1746900633754,-400.0,8.219e-05,2]
[360606518,1746900633765,-472.75140667,8.219e-05,2]
[360606520,1746900633775,-462.55,8.219e-05,2]
[360606522,1746900633786,-908.84,8.219e-05,2]
[360606524,1746900633795,-400.0,8.219e-05,2]
[360606526,1746900633806,-400.0,8.219e-05,2]
[360606528,1746900633816,-583.02,8.219e-05,2]
[360606530,1746900633826,-400.0,8.219e-05,2]
[360606532,1746900633836,-400.0,8.219e-05,2]
[360606534,1746900633848,-604.59,8.219e-05,2]
[360606536,1746900633858,-1077.98,8.219e-05,2]
[360606538,1746900633867,-547.09,8.219e-05,2]
[360606540,1746900633877,-217.41697661,8.219e-05,2]
[360606542,1746900633887,-1243.5,8.219e-05,2]
[360606544,1746900633896,-1120.84,8.219e-05,2]
[360606546,1746900633906,-400.0,8.219e-05,2]
[360606548,1746900633915,-400.0,8.219e-05,2]
[360606550,1746900633924,-502.82189837,8.219e-05,2]
[360606552,1746900633934,-881.45,8.219e-05,2]
[360606554,1746900633943,-400.0,8.219e-05,2]
[360606556,1746900633956,-400.0,8.219e-05,2]
[360606558,1746900633966,-400.0,8.219e-05,2]
[360606560,1746900633975,-400.0,8.219e-05,2]
[360606562,1746900633985,-547.60214983,8.219e-05,2]
[360606564,1746900633994,-503.59950937,8.219e-05,2]
[360606566,1746900634004,-864.28,8.219e-05,2]
[360606568,1746900634014,-443.67,8.219e-05,2]
[360606570,1746900634023,-400.0,8.219e-05,2]
[360606572,1746900634033,-400.0,8.219e-05,2]
[360606574,1746900634043,-400.0,8.219e-05,2]
[360606576,1746900634052,-728.31,8.219e-05,2]
[360606578,1746900634061,-432.49,8.219e-05,2]
[360606580,1746900634071,-400.0,8.219e-05,2]
[360606582,1746900634081,-1915.27,8.219e-05,2]
[360606584,1746900634091,-400.0,8.219e-05,2]
[360606586,1746900634101,-400.0,8.219e-05,2]
[360606588,1746900634111,-431.82,8.219e-05,2]
[360606590,1746900634121,-400.0,8.219e-05,2]
[360606592,1746900634131,-501.62981091,8.219e-05,2]
[360606594,1746900634141,-1286.23,8.219e-05,2]
[360606596,1746900634151,-400.0,8.219e-05,2]
[360606598,1746900634160,-400.0,8.219e-05,2]
[360606600,1746900634170,-505.45374057,8.219e-05,2]
[360606602,1746900634180,-400.0,8.219e-05,2]
[360606604,1746900634190,-400.0,8.219e-05,2]
[360606606,1746900634201,-902.13,8.219e-05,2]
[360606608,1746900634210,-400.0,8.219e-05,2]
[360606610,1746900634220,-151.0,8.219e-05,2]
[360606612,1746900634230,-151.0,8.219e-05,2]
[360606614,1746900634240,-495.14,8.219e-05,2]
[360606615,1746900634250,-1071.99,8.219e-05,2]
[360606616,1746900634260,-278.374836,8.219e-05,2]
[360606617,1746900634269,-400.0,8.219e-05,2]
[360606618,1746900634279,-400.0,8.219e-05,2]
[360606620,1746900634290,-400.0,8.219e-05,2]
[360606621,1746900634299,-400.0,8.219e-05,2]
[360606622,1746900634309,-493.17,8.219e-05,2]
[360606624,1746900634319,-201.82459651,8.219e-05,2]
[360606626,1746900634328,-400.0,8.219e-05,2]
[360606627,1746900634337,-471.73,8.219e-05,2]
[360606629,1746900634347,-2724.09,8.219e-05,2]
[360606631,1746900634356,-588.38,8.219e-05,2]
[360606633,1746900634366,-400.0,8.219e-05,2]
[360606635,1746900634376,-538.36,8.219e-05,2]
[360606637,1746900634386,-400.0,8.219e-05,2]
[360606639,1746900634396,-400.0,8.219e-05,2]
[360606641,1746900634406,-934.27,8.219e-05,2]
[360606643,1746900634416,-400.0,8.219e-05,2]
[360606644,1746900634426,-1150.31,8.219e-05,2]
[360606645,1746900634437,-400.0,8.219e-05,2]
[360606646,1746900634448,-860.67,8.219e-05,2]
[360606648,1746900634458,-400.0,8.219e-05,2]
[360606649,1746900634467,-400.0,8.219e-05,2]
[360606652,1746900634478,-693.27,8.219e-05,2]
[360606654,1746900634487,-400.0,8.219e-05,2]
[360606656,1746900634497,-1072.9,8.219e-05,2]
[360606658,1746900634506,-400.0,8.219e-05,2]
[360606660,1746900634516,-440.53,8.219e-05,2]
[360606662,1746900634525,-934.45,8.219e-05,2]
[360606663,1746900634536,-316.13643915,8.219e-05,2]
[360606665,1746900634545,-400.0,8.219e-05,2]
[360606667,1746900634554,-652.9,8.219e-05,2]
[360606669,1746900634564,-400.0,8.219e-05,2]
[360606671,1746900634573,-400.0,8.219e-05,2]
[360606673,1746900634583,-421.0,8.219e-05,2]
[360606675,1746900634592,-543.84,8.219e-05,2]
[360606677,1746900634602,-430.23,8.219e-05,2]
[360606680,1746900634613,-400.0,8.219e-05,2]